[Event "FIDE WYCC Girls U18 2023"]
[Site "Montesilvano"]
[Date "2023.11.22"]
[Round "9.26"]
[White "Hyatt, Jessica"]
[Black "Chavez Echeverria, Ana Karen"]
[Result "1-0"]
[ECO "D37"]
[WhiteElo "1818"]
[BlackElo "1230"]
[Annotator "NA RC"]
[PlyCount "67"]
[EventDate "2023.11.13"]
[EventType "swiss"]
[EventCountry "ITA"]
[SourceTitle "playchess.com"]
[Source "ChessBase"]
[SourceQuality "1"]
[TimeControl "40/5400+30:1800+30"]

1. d4 {[%emt 0:05:30]} Nf6 {[%emt 0:00:21]} 2. Nf3 {[%emt 0:00:19]} d5 {[%emt 0:00:48]} 3. c4 {[%emt 0:00:10]} e6 {[%emt 0:02:12]} 4. Nc3 {[%emt 0:00:42]} Be7 {[%emt 0:06:16]} 5. Qc2 {[%emt 0:06:08]} c5 {[%emt 0:06:15]} 6. cxd5 {[%emt 0:04:10]} cxd4 {[%emt 0:02:54]} 7. Nxd4 {[%emt 0:07:03]} O-O {[%emt 0:00:22]} 8. Bg5 {[%emt 0:10:50]} Nxd5 {[%emt 0:03:35]} 9. Bxe7 {[%emt 0:00:45]} Nxe7 {[%emt 0:01:34]} 10. Rd1 {[%emt 0:01:44]} Qa5 {[%emt 0:04:23]} 11. e3 {[%emt 0:03:47]} Nbc6 {[%emt 0:07:04]} 12. a3 {[%emt 0:04:47]} Rd8 {[%emt 0:02:12]} 13. Bd3 {[%emt 0:05:56]} Qh5 {[%emt 0:02:00]} 14. Nxc6 Nxc6 {[%emt 0:00:19]} 15. O-O {[%emt 0:02:06]} Bd7 {[%emt 0:02:35]} 16. Rd2 {[%emt 0:04:03]} Ne5 {[%emt 0:02:04]} 17. Rfd1 {[%emt 0:02:47]} Rac8 {[%emt 0:06:00]} 18. Be2 {[%emt 0:01:05]} Qh4 {[%emt 0:08:44]} 19. f4 {[%emt 0:00:30]} Nc4 {[%emt 0:12:02]} 20. Bxc4 {[%emt 0:06:00]} Rxc4 {[%emt 0:00:12]} 21. Rd6 {[%emt 0:14:32]} Rc7 {[%emt 0:01:58]} 22. Qd2 {[%emt 0:01:15]} b6 {[%emt 0:06:23]} 23. Qd3 {[%emt 0:02:58]} g6 {[%emt 0:02:29]} 24. Ne4 {[%emt 0:01:13]} Kg7 {[%emt 0:02:19]} 25. Qd4+ {[%emt 0:00:34]} f6 {[%emt 0:02:49]} 26. g3 {[%emt 0:00:29]} e5 {[%emt 0:02:11]} 27. fxe5 {[%emt 0:00:32]} Qh6 {[%emt 0:01:45]} 28. e6 {[%emt 0:00:43]} Rf8 {[%emt 0:01:45]} 29. Rxd7+ {[%emt 0:01:15]} Rxd7 {[%emt 0:00:09]} 30. exd7 {[%emt 0:00:40]} Kg8 {[%emt 0:02:15]} 31. d8=Q {[%emt 0:00:51]} Rxd8 {[%emt 0:00:09]} 32. Qxd8+ {[%emt 0:00:06]} Qf8 {[%emt 0:00:07]} 33. Nxf6+ {[%emt 0:00:06]} Kg7 {[%emt 0:00:15]} 34. Rd7+ {[%emt 0:00:04]} 1-0

[Event "FIDE WYCC Girls U18 2023"]
[Site "Montesilvano"]
[Date "2023.11.22"]
[Round "9.27"]
[White "Alexandrova, Angelina"]
[Black "Saraci, Rinesa"]
[Result "1/2-1/2"]
[ECO "A46"]
[WhiteElo "1814"]
[BlackElo "1481"]
[Annotator "NA RC"]
[PlyCount "115"]
[EventDate "2023.11.13"]
[EventType "swiss"]
[EventCountry "ITA"]
[SourceTitle "playchess.com"]
[Source "ChessBase"]
[SourceQuality "1"]
[TimeControl "40/5400+30:1800+30"]

1. d4 {[%emt 0:00:02]} Nf6 {[%emt 0:00:15]} 2. Nf3 {[%emt 0:00:08]} e6 {[%emt 0:00:29]} 3. g3 {[%emt 0:00:25]} d5 {[%emt 0:02:54]} 4. Bg2 {[%emt 0:00:10]} Be7 {[%emt 0:00:38]} 5. O-O {[%emt 0:00:14]} O-O {[%emt 0:00:48]} 6. b3 {[%emt 0:00:42]} b6 {[%emt 0:02:57]} 7. c4 {[%emt 0:00:58]} Bb7 {[%emt 0:01:36]} 8. Bb2 {[%emt 0:00:42]} Nbd7 {[%emt 0:03:56]} 9. Nbd2 {[%emt 0:03:35]} dxc4 {[%emt 0:03:27]} 10. Nxc4 {[%emt 0:03:11]} c5 {[%emt 0:01:45]} 11. dxc5 {[%emt 0:06:35]} Nxc5 {[%emt 0:08:26]} 12. Qxd8 {[%emt 0:07:44]} Raxd8 {[%emt 0:04:48]} 13. Rfd1 {[%emt 0:02:14]} h6 {[%emt 0:10:37]} 14. Nd4 {[%emt 0:16:05]} Bd5 {[%emt 0:16:10]} 15. Nc6 {[%emt 0:01:51]} Bxc6 {[%emt 0:06:13]} 16. Bxc6 {[%emt 0:00:12]} Rxd1+ {[%emt 0:03:43]} 17. Rxd1 {[%emt 0:00:11]} Rc8 {[%emt 0:06:04]} 18. Bf3 {[%emt 0:05:51]} Ncd7 {[%emt 0:02:18]} 19. e4 {[%emt 0:09:05]} Nf8 {[%emt 0:05:28]} 20. Kf1 {[%emt 0:10:43]} N6d7 {[%emt 0:04:42]} 21. e5 {[%emt 0:04:48]} Nb8 {[%emt 0:03:08]} 22. Be4 {[%emt 0:01:59]} Nfd7 {[%emt 0:04:38]} 23. Ke2 {[%emt 0:01:00]} Nc5 {[%emt 0:02:07]} 24. Bb1 {[%emt 0:01:33]} Nc6 {[%emt 0:01:49]} 25. f4 {[%emt 0:03:37]} Nb4 {[%emt 0:02:32]} 26. Ne3 {[%emt 0:02:58]} Nc6 {[%emt 0:01:05]} 27. g4 {[%emt 0:07:06]} Rd8 {[%emt 0:00:42]} 28. Rxd8+ {[%emt 0:03:31]} Bxd8 {[%emt 0:00:07]} 29. Nc4 {[%emt 0:03:42]} Bc7 {[%emt 0:01:00]} 30. Ke3 {[%emt 0:00:32]} Kf8 {[%emt 0:00:27]} 31. Ba3 {[%emt 0:03:38]} g6 {[%emt 0:00:25]} 32. b4 {[%emt 0:00:31]} b5 {[%emt 0:00:31]} 33. bxc5 {[%emt 0:00:32]} bxc4 {[%emt 0:00:07]} 34. Be4 {[%emt 0:00:19]} Na5 {[%emt 0:00:55]} 35. Kd4 {[%emt 0:00:36]} Ke8 {[%emt 0:00:32]} 36. Bf3 {[%emt 0:00:29]} Kd7 {[%emt 0:00:25]} 37. Be2 {[%emt 0:00:11]} Kc6 {[%emt 0:00:32]} 38. Bxc4 {[%emt 0:00:21]} Nxc4 {[%emt 0:00:14]} 39. Kxc4 {[%emt 0:00:04]} Ba5 {[%emt 0:00:46]} 40. Bb4 {[%emt 0:00:00]} Bd8 {[%emt 0:00:00]} 41. Bd2 {[%emt 0:07:45]} Be7 {[%emt 0:03:22]} 42. f5 {[%emt 0:10:34]} h5 {[%emt 0:04:43]} 43. gxh5 {[%emt 0:03:36]} gxh5 {[%emt 0:00:50]} 44. fxe6 {[%emt 0:00:10]} fxe6 {[%emt 0:00:08]} 45. Be3 {[%emt 0:01:35]} Bd8 {[%emt 0:01:06]} 46. h3 {[%emt 0:03:47]} Bc7 {[%emt 0:00:42]} 47. Kd4 {[%emt 0:01:50]} Bd8 {[%emt 0:02:16]} 48. Bf2 {[%emt 0:00:23]} Be7 {[%emt 0:01:13]} 49. Kc4 {[%emt 0:00:08]} Bd8 {[%emt 0:00:23]} 50. Kb4 {[%emt 0:01:20]} Bc7 {[%emt 0:00:47]} 51. Bg3 {[%emt 0:00:26]} Bd8 {[%emt 0:00:21]} 52. Bf4 {[%emt 0:00:31]} Be7 {[%emt 0:00:52]} 53. Be3 {[%emt 0:00:24]} Bd8 {[%emt 0:00:09]} 54. Kc4 {[%emt 0:00:16]} Bc7 {[%emt 0:00:45]} 55. Bd4 {[%emt 0:02:14]} Bd8 {[%emt 0:01:03]} 56. a4 {[%emt 0:00:26]} a6 {[%emt 0:00:41]} 57. Bf2 {[%emt 0:00:27]} Be7 {[%emt 0:01:02]} 58. h4 {[%emt 0:01:24]} 1/2-1/2

[Event "FIDE WYCC Girls U18 2023"]
[Site "Montesilvano"]
[Date "2023.11.22"]
[Round "9.28"]
[White "Ajradinoska, Indzi"]
[Black "Soares, Sara Joana De Moura "]
[Result "0-1"]
[ECO "D02"]
[WhiteElo "1594"]
[BlackElo "1772"]
[Annotator "NA RC"]
[PlyCount "64"]
[EventDate "2023.11.13"]
[EventType "swiss"]
[EventCountry "ITA"]
[SourceTitle "playchess.com"]
[Source "ChessBase"]
[SourceQuality "1"]
[TimeControl "40/5400+30:1800+30"]

1. d4 {[%emt 0:00:04]} d5 {[%emt 0:00:11]} 2. Nf3 {[%emt 0:00:06]} Nf6 {[%emt 0:00:13]} 3. b3 {[%emt 0:00:08]} Bg4 {[%emt 0:00:40]} 4. Bb2 {[%emt 0:00:10]} e6 {[%emt 0:00:24]} 5. e3 {[%emt 0:00:34]} c5 {[%emt 0:03:47]} 6. Nbd2 {[%emt 0:00:39]} Nc6 {[%emt 0:00:22]} 7. Bd3 {[%emt 0:00:45]} cxd4 {[%emt 0:03:10]} 8. exd4 {[%emt 0:00:22]} Bd6 {[%emt 0:00:14]} 9. O-O {[%emt 0:00:53]} O-O {[%emt 0:00:57]} 10. c3 {[%emt 0:01:01]} Rc8 {[%emt 0:03:35]} 11. Qe1 {[%emt 0:03:34]} Re8 {[%emt 0:08:01]} 12. Ne5 {[%emt 0:02:02]} Bh5 {[%emt 0:02:00]} 13. f4 {[%emt 0:10:49]} Nd7 {[%emt 0:04:31]} 14. Nxd7 {[%emt 0:04:19]} Qxd7 {[%emt 0:01:41]} 15. Qe3 {[%emt 0:05:51]} Bg6 {[%emt 0:11:31]} 16. Be2 {[%emt 0:01:43]} Ne7 {[%emt 0:07:24]} 17. Rae1 {[%emt 0:01:29]} Bc7 {[%emt 0:02:08]} 18. Ba3 {[%emt 0:08:21]} Nf5 {[%emt 0:01:06]} 19. Qf3 {[%emt 0:04:53]} Ba5 {[%emt 0:02:01]} 20. Nb1 {[%emt 0:01:53]} Nh4 {[%emt 0:06:11]} 21. Qg4 {[%emt 0:02:29]} Bxb1 {[%emt 0:00:29]} 22. Rxb1 {[%emt 0:00:02]} Nf5 {[%emt 0:00:08]} 23. b4 {[%emt 0:01:06]} Ne3 {[%emt 0:20:14]} 24. Qf3 {[%emt 0:01:42]} Nxf1 {[%emt 0:01:47]} 25. Qxf1 {[%emt 0:00:03]} Qe7 {[%emt 0:02:25]} 26. c4 {[%emt 0:06:45]} dxc4 {[%emt 0:01:17]} 27. bxa5 {[%emt 0:00:08]} Qxa3 {[%emt 0:00:23]} 28. Bxc4 {[%emt 0:00:10]} Qxa5 {[%emt 0:01:58]} 29. Rxb7 {[%emt 0:01:11]} Qa4 {[%emt 0:00:26]} 30. Bb3 {[%emt 0:01:34]} Qxd4+ {[%emt 0:00:03]} 31. Kh1 {[%emt 0:00:08]} Qd2 {[%emt 0:00:35]} 32. f5 {[%emt 0:01:25]} Rc1 {[%emt 0:00:11]} 0-1

[Event "FIDE WYCC Girls U18 2023"]
[Site "Montesilvano"]
[Date "2023.11.22"]
[Round "9.29"]
[White "Mohd Azman, Farihah Nur Aisyah"]
[Black "Egger, Stefanie"]
[Result "1/2-1/2"]
[ECO "A48"]
[WhiteElo "1379"]
[BlackElo "1784"]
[Annotator "NA RC"]
[PlyCount "96"]
[EventDate "2023.11.13"]
[EventType "swiss"]
[EventCountry "ITA"]
[SourceTitle "playchess.com"]
[Source "ChessBase"]
[SourceQuality "1"]
[TimeControl "40/5400+30:1800+30"]

1. d4 {[%emt 0:00:03]} Nf6 {[%emt 0:00:06]} 2. Nf3 {[%emt 0:00:06]} g6 {[%emt 0:00:05]} 3. Bf4 {[%emt 0:00:17]} Bg7 {[%emt 0:00:05]} 4. Nbd2 {[%emt 0:01:07]} d6 {[%emt 0:00:13]} 5. c3 {[%emt 0:01:29]} O-O {[%emt 0:00:07]} 6. e3 {[%emt 0:06:32]} b6 {[%emt 0:00:29]} 7. Qc2 {[%emt 0:00:58]} Bb7 {[%emt 0:00:40]} 8. h4 {[%emt 0:01:17]} Nbd7 {[%emt 0:21:40]} 9. Be2 {[%emt 0:10:47]} Qe8 {[%emt 0:01:25]} 10. O-O-O {[%emt 0:17:09]} e5 {[%emt 0:01:40]} 11. dxe5 {[%emt 0:05:15]} dxe5 {[%emt 0:00:15]} 12. Bg5 {[%emt 0:00:40]} e4 {[%emt 0:01:31]} 13. Nd4 {[%emt 0:04:49]} a6 {[%emt 0:07:35]} 14. Rdg1 {[%emt 0:12:50]} c5 {[%emt 0:00:21]} 15. N4b3 {[%emt 0:00:28]} Rd8 {[%emt 0:06:43]} 16. Kb1 {[%emt 0:03:06]} h6 {[%emt 0:03:50]} 17. Bf4 {[%emt 0:03:21]} Qe6 {[%emt 0:18:13]} 18. g4 {[%emt 0:09:32]} Ne8 {[%emt 0:00:24]} 19. Qd1 {[%emt 0:06:34]} Ne5 {[%emt 0:01:59]} 20. Bxe5 {[%emt 0:04:23]} Bxe5 {[%emt 0:01:19]} 21. g5 {[%emt 0:05:43]} h5 {[%emt 0:08:45]} 22. Qf1 {[%emt 0:02:05]} Ng7 {[%emt 0:03:11]} 23. Bxa6 {[%emt 0:02:01]} Bxa6 {[%emt 0:00:08]} 24. Qxa6 {[%emt 0:00:04]} Ra8 {[%emt 0:00:16]} 25. Qc4 {[%emt 0:00:23]} Qxc4 {[%emt 0:02:25]} 26. Nxc4 {[%emt 0:00:05]} Bc7 {[%emt 0:00:11]} 27. Rd1 {[%emt 0:00:41]} Rad8 {[%emt 0:00:27]} 28. Rd2 {[%emt 0:00:57]} Nf5 {[%emt 0:00:28]} 29. Kc2 {[%emt 0:01:10]} Rfe8 {[%emt 0:01:49]} 30. Rxd8 {[%emt 0:00:49]} Rxd8 {[%emt 0:00:13]} 31. Ncd2 {[%emt 0:00:11]} Re8 {[%emt 0:01:08]} 32. Nc1 {[%emt 0:00:41]} Kg7 {[%emt 0:00:13]} 33. Ne2 {[%emt 0:00:20]} f6 {[%emt 0:00:21]} 34. Nf1 {[%emt 0:00:49]} fxg5 {[%emt 0:00:27]} 35. hxg5 {[%emt 0:00:06]} Bd8 {[%emt 0:00:18]} 36. Rg1 {[%emt 0:01:00]} Nd6 {[%emt 0:01:46]} 37. Nf4 {[%emt 0:00:14]} Nf7 {[%emt 0:00:28]} 38. Nh3 {[%emt 0:00:25]} Re5 {[%emt 0:01:38]} 39. Nd2 {[%emt 0:00:11]} Nxg5 {[%emt 0:00:43]} 40. Nxg5 {[%emt 0:00:00]} Bxg5 {[%emt 0:00:00]} 41. Kd1 {[%emt 0:10:26]} Bf6 {[%emt 0:01:38]} 42. Ke2 {[%emt 0:02:10]} g5 {[%emt 0:00:56]} 43. f4 {[%emt 0:05:35]} Re6 {[%emt 0:03:01]} 44. fxg5 {[%emt 0:05:48]} Be7 {[%emt 0:00:28]} 45. g6 {[%emt 0:02:25]} Re5 {[%emt 0:01:44]} 46. a4 {[%emt 0:02:03]} Re6 {[%emt 0:01:42]} 47. Nc4 {[%emt 0:01:37]} Bd8 {[%emt 0:02:36]} 48. Nd2 {[%emt 0:00:22]} Be7 {[%emt 0:00:20]} 1/2-1/2

[Event "FIDE WYCC Girls U18 2023"]
[Site "Montesilvano"]
[Date "2023.11.22"]
[Round "9.30"]
[White "Ivanovic, Tara"]
[Black "Hoanca, Alexia-Ioana"]
[Result "0-1"]
[ECO "B18"]
[WhiteElo "1575"]
[BlackElo "1830"]
[Annotator "NA RC"]
[PlyCount "78"]
[EventDate "2023.11.13"]
[EventType "swiss"]
[EventCountry "ITA"]
[SourceTitle "playchess.com"]
[Source "ChessBase"]
[SourceQuality "1"]
[TimeControl "40/5400+30:1800+30"]

1. e4 {[%emt 0:00:05]} c6 {[%emt 0:00:24]} 2. d4 {[%emt 0:00:05]} d5 {[%emt 0:00:04]} 3. Nd2 {[%emt 0:00:06]} dxe4 {[%emt 0:00:18]} 4. Nxe4 {[%emt 0:00:08]} Bf5 {[%emt 0:00:32]} 5. Ng3 {[%emt 0:00:08]} Bg6 {[%emt 0:00:04]} 6. Nf3 {[%emt 0:00:05]} Nd7 {[%emt 0:00:32]} 7. Bd3 {[%emt 0:00:29]} Bxd3 {[%emt 0:01:16]} 8. Qxd3 {[%emt 0:00:08]} e6 {[%emt 0:00:10]} 9. O-O {[%emt 0:01:10]} Ngf6 {[%emt 0:01:13]} 10. c4 {[%emt 0:03:03]} Be7 {[%emt 0:00:50]} 11. b3 {[%emt 0:02:12]} O-O {[%emt 0:02:02]} 12. Bb2 {[%emt 0:02:00]} a5 {[%emt 0:02:57]} 13. Rfd1 {[%emt 0:09:00]} a4 {[%emt 0:04:25]} 14. Nf1 {[%emt 0:04:15]} Qa5 {[%emt 0:10:11]} 15. Ne3 {[%emt 0:07:17]} Rfd8 {[%emt 0:02:55]} 16. Qc2 {[%emt 0:04:58]} Qh5 {[%emt 0:18:28]} 17. Rd2 {[%emt 0:11:24]} Bb4 {[%emt 0:06:20]} 18. Rdd1 {[%emt 0:05:43]} a3 {[%emt 0:08:39]} 19. Bc1 {[%emt 0:04:31]} e5 {[%emt 0:03:41]} 20. Nf1 {[%emt 0:04:32]} exd4 {[%emt 0:09:37]} 21. Nxd4 {[%emt 0:03:50]} Qe5 {[%emt 0:13:50]} 22. Be3 {[%emt 0:04:31]} Nc5 {[%emt 0:00:51]} 23. Nf3 {[%emt 0:03:20]} Qb2 {[%emt 0:01:06]} 24. Rxd8+ {[%emt 0:06:20]} Rxd8 {[%emt 0:00:12]} 25. Rd1 {[%emt 0:04:22]} Ne6 {[%emt 0:06:31]} 26. Rxd8+ {[%emt 0:01:17]} Nxd8 {[%emt 0:00:05]} 27. Qd3 {[%emt 0:06:33]} Ne6 {[%emt 0:01:36]} 28. Nd4 {[%emt 0:02:38]} Nc5 {[%emt 0:02:59]} 29. Qc2 {[%emt 0:04:51]} Nce4 {[%emt 0:01:24]} 30. Ng3 {[%emt 0:03:22]} Nxg3 {[%emt 0:01:41]} 31. hxg3 {[%emt 0:00:11]} c5 {[%emt 0:00:13]} 32. Qf5 {[%emt 0:00:57]} cxd4 {[%emt 0:00:28]} 33. Bg5 {[%emt 0:01:51]} Bf8 {[%emt 0:00:43]} 34. Bxf6 {[%emt 0:00:46]} Qc1+ {[%emt 0:00:17]} 35. Kh2 {[%emt 0:00:10]} gxf6 {[%emt 0:00:10]} 36. Qg4+ {[%emt 0:00:21]} Qg5 {[%emt 0:00:44]} 37. Qxd4 {[%emt 0:00:44]} Bc5 {[%emt 0:00:30]} 38. Qd8+ {[%emt 0:01:16]} Kg7 {[%emt 0:00:09]} 39. Qc7 {[%emt 0:00:46]} Bxf2 {[%emt 0:00:16]} 0-1

[Event "FIDE WYCC Girls U18 2023"]
[Site "Montesilvano"]
[Date "2023.11.22"]
[Round "9.31"]
[White "Hernandez Ortega, Carolina"]
[Black "Stagno, Milena"]
[Result "1-0"]
[ECO "B34"]
[WhiteElo "1796"]
[BlackElo "1444"]
[Annotator "NA RC"]
[PlyCount "113"]
[EventDate "2023.11.13"]
[EventType "swiss"]
[EventCountry "ITA"]
[SourceTitle "playchess.com"]
[Source "ChessBase"]
[SourceQuality "1"]
[TimeControl "40/5400+30:1800+30"]

1. e4 {[%emt 0:00:04]} c5 {[%emt 0:00:13]} 2. Nf3 {[%emt 0:00:09]} Nc6 {[%emt 0:00:05]} 3. d4 {[%emt 0:00:08]} cxd4 {[%emt 0:00:08]} 4. Nxd4 {[%emt 0:00:08]} g6 {[%emt 0:00:09]} 5. Nc3 {[%emt 0:00:15]} Bg7 {[%emt 0:00:32]} 6. Nb3 {[%emt 0:00:25]} Nf6 {[%emt 0:01:11]} 7. g4 {[%emt 0:00:23]} h6 {[%emt 0:28:59]} 8. Be2 {[%emt 0:08:50]} d6 {[%emt 0:03:57]} 9. Be3 {[%emt 0:02:38]} Ne5 {[%emt 0:02:38]} 10. h3 {[%emt 0:01:47]} Be6 {[%emt 0:04:58]} 11. Bb5+ {[%emt 0:08:29]} Bd7 {[%emt 0:04:33]} 12. f4 {[%emt 0:01:04]} Nc6 {[%emt 0:00:23]} 13. Qd2 {[%emt 0:04:49]} a6 {[%emt 0:00:58]} 14. Be2 {[%emt 0:02:23]} b5 {[%emt 0:01:51]} 15. a3 {[%emt 0:02:54]} Na5 {[%emt 0:02:25]} 16. Nd4 {[%emt 0:11:28]} Nc4 {[%emt 0:02:53]} 17. Bxc4 {[%emt 0:02:33]} bxc4 {[%emt 0:00:24]} 18. e5 {[%emt 0:01:52]} dxe5 {[%emt 0:00:42]} 19. fxe5 {[%emt 0:00:04]} Ng8 {[%emt 0:00:16]} 20. e6 {[%emt 0:02:43]} Bxe6 {[%emt 0:02:48]} 21. Nxe6 {[%emt 0:00:27]} Qxd2+ 22. Bxd2 {[%emt 0:00:27]} fxe6 {[%emt 0:00:59]} 23. O-O-O {[%emt 0:01:06]} Nf6 {[%emt 0:01:06]} 24. Rhe1 {[%emt 0:03:09]} Kf7 {[%emt 0:01:50]} 25. Ne4 {[%emt 0:05:50]} Rac8 {[%emt 0:05:37]} 26. Bc3 {[%emt 0:08:11]} Rc6 {[%emt 0:04:01]} 27. Rf1 {[%emt 0:03:39]} g5 {[%emt 0:05:09]} 28. Nxf6 {[%emt 0:08:27]} exf6 {[%emt 0:01:40]} 29. Rd7+ {[%emt 0:00:11]} Kg6 {[%emt 0:00:09]} 30. Rxg7+ {[%emt 0:00:30]} Kxg7 {[%emt 0:00:19]} 31. Bxf6+ {[%emt 0:00:06]} Kh7 {[%emt 0:00:18]} 32. Bxh8 {[%emt 0:00:05]} Kxh8 {[%emt 0:00:03]} 33. Rf3 {[%emt 0:00:51]} Rd6 {[%emt 0:02:38]} 34. Rf8+ {[%emt 0:02:02]} Kg7 {[%emt 0:00:35]} 35. Rc8 {[%emt 0:00:06]} Rd4 {[%emt 0:05:57]} 36. Rc6 {[%emt 0:00:08]} Re4 {[%emt 0:00:04]} 37. Rxa6 {[%emt 0:04:52]} Re3 {[%emt 0:00:08]} 38. Rc6 {[%emt 0:00:26]} Rxh3 {[%emt 0:00:12]} 39. Rxc4 {[%emt 0:01:03]} Rh4 {[%emt 0:00:40]} 40. b4 {[%emt 0:00:00]} h5 {[%emt 0:00:00]} 41. Rc7+ {[%emt 0:01:51]} Kf6 {[%emt 0:00:40]} 42. gxh5 {[%emt 0:00:07]} Rxh5 {[%emt 0:00:08]} 43. Kd2 {[%emt 0:12:39]} g4 {[%emt 0:00:59]} 44. Ke2 {[%emt 0:01:07]} Rf5 {[%emt 0:00:23]} 45. Rc8 {[%emt 0:02:41]} Kg5 {[%emt 0:02:19]} 46. c4 {[%emt 0:01:46]} g3 {[%emt 0:00:37]} 47. c5 {[%emt 0:02:11]} Rf2+ {[%emt 0:01:04]} 48. Ke1 {[%emt 0:00:18]} Ra2 {[%emt 0:00:46]} 49. c6 {[%emt 0:01:03]} g2 {[%emt 0:01:47]} 50. Rg8+ {[%emt 0:00:04]} Kf4 {[%emt 0:01:07]} 51. c7 {[%emt 0:00:28]} Ke3 {[%emt 0:00:45]} 52. Kd1 {[%emt 0:00:06]} Ra1+ {[%emt 0:01:16]} 53. Kc2 {[%emt 0:00:05]} g1=Q {[%emt 0:00:05]} 54. Rxg1 {[%emt 0:00:05]} Rxg1 {[%emt 0:00:05]} 55. c8=Q {[%emt 0:00:07]} Rg2+ {[%emt 0:00:16]} 56. Kb3 {[%emt 0:00:09]} e5 {[%emt 0:00:07]} 57. Qh3+ {[%emt 0:00:47]} 1-0

[Event "FIDE WYCC Girls U18 2023"]
[Site "Montesilvano"]
[Date "2023.11.22"]
[Round "9.32"]
[White "Gonzalez Romo, Greshya Jocelyn"]
[Black "Graziani, Emma"]
[Result "0-1"]
[ECO "C77"]
[WhiteElo "1494"]
[BlackElo "1783"]
[Annotator "NA RC"]
[PlyCount "110"]
[EventDate "2023.11.13"]
[EventType "swiss"]
[EventCountry "ITA"]
[SourceTitle "playchess.com"]
[Source "ChessBase"]
[SourceQuality "1"]
[TimeControl "40/5400+30:1800+30"]

1. e4 {[%emt 0:00:03]} e5 {[%emt 0:00:03]} 2. Nf3 {[%emt 0:00:08]} Nc6 {[%emt 0:00:17]} 3. Bb5 {[%emt 0:00:10]} a6 {[%emt 0:00:15]} 4. Ba4 {[%emt 0:00:11]} Nf6 {[%emt 0:00:48]} 5. d3 {[%emt 0:02:35]} d6 {[%emt 0:00:46]} 6. c3 {[%emt 0:00:48]} b5 {[%emt 0:00:11]} 7. Bc2 {[%emt 0:01:11]} Na5 {[%emt 0:01:01]} 8. b4 {[%emt 0:05:01]} Nc6 {[%emt 0:00:13]} 9. a4 {[%emt 0:01:07]} Bb7 {[%emt 0:01:52]} 10. O-O {[%emt 0:03:53]} Be7 {[%emt 0:01:37]} 11. Bg5 {[%emt 0:02:48]} O-O {[%emt 0:00:42]} 12. Na3 {[%emt 0:02:07]} Na7 {[%emt 0:02:50]} 13. Re1 {[%emt 0:08:15]} h6 {[%emt 0:03:53]} 14. Be3 {[%emt 0:00:52]} bxa4 {[%emt 0:02:49]} 15. Bxa4 {[%emt 0:00:16]} Nc6 {[%emt 0:01:42]} 16. Nc4 {[%emt 0:02:26]} g5 {[%emt 0:04:35]} 17. Nfd2 {[%emt 0:03:20]} Nh7 {[%emt 0:05:19]} 18. Qh5 {[%emt 0:04:26]} Kg7 {[%emt 0:02:19]} 19. Nf1 {[%emt 0:03:20]} f5 {[%emt 0:06:18]} 20. exf5 {[%emt 0:00:38]} Rxf5 {[%emt 0:01:01]} 21. Ng3 {[%emt 0:02:28]} Rf7 {[%emt 0:01:33]} 22. Ne4 {[%emt 0:07:43]} Nf6 {[%emt 0:03:32]} 23. Nxf6 {[%emt 0:00:45]} Bxf6 {[%emt 0:00:45]} 24. Nd2 {[%emt 0:05:29]} d5 {[%emt 0:02:21]} 25. Bb3 {[%emt 0:05:50]} Rd7 {[%emt 0:08:53]} 26. Bc5 {[%emt 0:03:27]} Ne7 {[%emt 0:02:22]} 27. Nf3 {[%emt 0:03:14]} Ng6 {[%emt 0:05:31]} 28. Nd2 {[%emt 0:06:40]} e4 {[%emt 0:07:02]} 29. dxe4 {[%emt 0:10:23]} Bxc3 {[%emt 0:02:17]} 30. exd5 {[%emt 0:05:51]} Nf4 {[%emt 0:02:49]} 31. Qd1 {[%emt 0:03:17]} Bxd5 {[%emt 0:20:59]} 32. Qc1 {[%emt 0:01:58]} Bxa1 {[%emt 0:02:00]} 33. Qxa1+ {[%emt 0:00:06]} Kg8 {[%emt 0:00:26]} 34. Bxd5+ {[%emt 0:01:26]} Nxd5 {[%emt 0:00:29]} 35. h3 {[%emt 0:01:11]} Qf6 {[%emt 0:04:22]} 36. Qa2 {[%emt 0:01:25]} Kh7 {[%emt 0:00:41]} 37. Nf3 {[%emt 0:00:40]} Nf4 {[%emt 0:01:39]} 38. Ne5 {[%emt 0:00:23]} Rg7 {[%emt 0:01:13]} 39. Qc2+ {[%emt 0:00:21]} Ng6 {[%emt 0:01:13]} 40. Ng4 {[%emt 0:00:00]} Qc6 {[%emt 0:00:00]} 41. Qb3 {[%emt 0:04:16]} Nf4 {[%emt 0:05:23]} 42. f3 {[%emt 0:02:48]} h5 {[%emt 0:02:55]} 43. Ne5 {[%emt 0:05:18]} Qd5 {[%emt 0:00:51]} 44. Qc2+ {[%emt 0:05:59]} Kg8 {[%emt 0:01:08]} 45. Nc4 {[%emt 0:01:57]} Rd8 {[%emt 0:01:00]} 46. Ne3 {[%emt 0:02:19]} Qe6 {[%emt 0:03:10]} 47. Qc4 {[%emt 0:09:36]} Qxc4 {[%emt 0:00:39]} 48. Nxc4 {[%emt 0:00:02]} Rgd7 {[%emt 0:02:05]} 49. Re5 {[%emt 0:01:13]} Rd5 {[%emt 0:00:51]} 50. Re7 {[%emt 0:01:05]} R8d7 {[%emt 0:00:26]} 51. Re8+ {[%emt 0:00:14]} Kg7 {[%emt 0:02:16]} 52. Ne5 {[%emt 0:00:21]} Rd1+ {[%emt 0:01:01]} 53. Kh2 {[%emt 0:00:41]} R7d2 {[%emt 0:01:55]} 54. Bf8+ {[%emt 0:01:43]} Kf6 {[%emt 0:01:08]} 55. Be7+ {[%emt 0:01:48]} Kxe5 {[%emt 0:00:21]} 0-1

[Event "FIDE WYCC Girls U18 2023"]
[Site "Montesilvano"]
[Date "2023.11.22"]
[Round "9.33"]
[White "Nielsen-Refs, Ingrid Elmer"]
[Black "Darweeche, Roaa"]
[Result "1/2-1/2"]
[ECO "D35"]
[WhiteElo "1676"]
[BlackElo "1406"]
[Annotator "NA RC"]
[PlyCount "65"]
[EventDate "2023.11.13"]
[EventType "swiss"]
[EventCountry "ITA"]
[SourceTitle "playchess.com"]
[Source "ChessBase"]
[SourceQuality "1"]
[TimeControl "40/5400+30:1800+30"]

1. d4 {[%emt 0:00:15]} d5 {[%emt 0:00:07]} 2. c4 {[%emt 0:00:16]} e6 {[%emt 0:00:14]} 3. Nc3 {[%emt 0:00:49]} Nf6 {[%emt 0:00:53]} 4. cxd5 {[%emt 0:00:39]} exd5 {[%emt 0:00:33]} 5. Bg5 {[%emt 0:01:15]} Be7 {[%emt 0:01:32]} 6. e3 {[%emt 0:01:25]} c6 {[%emt 0:02:36]} 7. Bd3 {[%emt 0:01:55]} Na6 {[%emt 0:01:31]} 8. Bxa6 {[%emt 0:09:28]} bxa6 {[%emt 0:00:07]} 9. Nge2 {[%emt 0:00:46]} O-O {[%emt 0:02:45]} 10. O-O {[%emt 0:00:50]} Nd7 {[%emt 0:14:13]} 11. Bxe7 {[%emt 0:03:26]} Qxe7 {[%emt 0:00:06]} 12. Qd2 {[%emt 0:06:10]} Nb6 {[%emt 0:00:44]} 13. b3 {[%emt 0:02:06]} Bg4 {[%emt 0:22:08]} 14. f3 {[%emt 0:04:41]} Bf5 {[%emt 0:01:30]} 15. Ng3 {[%emt 0:01:09]} Bg6 {[%emt 0:00:19]} 16. e4 {[%emt 0:10:28]} dxe4 {[%emt 0:01:14]} 17. fxe4 {[%emt 0:02:07]} Rfd8 {[%emt 0:07:21]} 18. Rad1 {[%emt 0:02:06]} Rac8 {[%emt 0:01:33]} 19. Qd3 {[%emt 0:11:38]} Qb4 {[%emt 0:06:58]} 20. Nce2 {[%emt 0:10:17]} Qb5 {[%emt 0:05:44]} 21. Nf4 {[%emt 0:08:04]} Qxd3 {[%emt 0:01:52]} 22. Rxd3 {[%emt 0:00:38]} Rd7 {[%emt 0:01:10]} 23. Nxg6 {[%emt 0:01:05]} hxg6 {[%emt 0:00:49]} 24. Rc1 {[%emt 0:07:16]} Rcd8 {[%emt 0:01:01]} 25. Ne2 {[%emt 0:01:32]} Re8 {[%emt 0:00:43]} 26. e5 {[%emt 0:05:13]} Rxe5 {[%emt 0:00:35]} 27. Ng3 {[%emt 0:00:09]} Re8 {[%emt 0:00:30]} 28. Rcd1 {[%emt 0:00:30]} Red8 {[%emt 0:00:04]} 29. R1d2 {[%emt 0:00:00]} Rd6 {[%emt 0:00:14]} 30. Rd1 {[%emt 0:00:00]} R6d7 {[%emt 0:00:11]} 31. R1d2 {[%emt 0:00:02]} Rd6 {[%emt 0:00:15]} 32. Rd1 {[%emt 0:00:04]} R6d7 {[%emt 0:00:04]} 33. R1d2 {[%emt 0:00:10]} 1/2-1/2